[Event "Titled Tuesday Blitz February 15 Early 2022"]
[White "Urbina Quiroz, Edwin"]
[Black "Milosevic, Milos"]
[WhiteFideId "6500650"]
[BlackFideId "964875"]
[WhiteElo "2130"]
[BlackElo "2198"]
[Result "0-1"]
[Round "05"]
[TimeControl "180+1"]
[Date "2022.02.15"]
[WhiteClock "0:00:14"]
[BlackClock "0:01:19"]

1. e4 {[%clk 0:02:50]}  g6 {[%clk 0:02:59]} 2. d4 {[%clk 0:02:44]}  Bg7 {[%clk 0:02:59]} 3. Nc3 {[%clk 0:02:44]}  d6 {[%clk 0:02:59]} 4. g3 {[%clk 0:02:45]}  e5 {[%clk 0:02:55]} 5. dxe5 {[%clk 0:02:43]}  dxe5 {[%clk 0:02:56]} 6. Qxd8+ {[%clk 0:02:43]}  Kxd8 {[%clk 0:02:57]} 7. Bg5+ {[%clk 0:02:42]}  f6 {[%clk 0:02:57]} 8. O-O-O+ {[%clk 0:02:43]}  Nd7 {[%clk 0:02:50]} 9. Be3 {[%clk 0:02:38]}  c6 {[%clk 0:02:51]} 10. f4 {[%clk 0:02:33]}  Kc7 {[%clk 0:02:44]} 11. Nf3 {[%clk 0:02:28]}  Nh6 {[%clk 0:02:34]} 12. Bh3 {[%clk 0:02:25]}  Nf7 {[%clk 0:02:23]} 13. Kb1 {[%clk 0:02:16]}  exf4 {[%clk 0:02:10]} 14. Bxf4+ {[%clk 0:02:06]}  Nde5 {[%clk 0:02:08]} 15. Bxc8 {[%clk 0:02:07]}  Raxc8 {[%clk 0:02:08]} 16. Nxe5 {[%clk 0:01:52]}  fxe5 {[%clk 0:02:07]} 17. Be3 {[%clk 0:01:47]}  b6 {[%clk 0:02:04]} 18. Rhf1 {[%clk 0:01:46]}  Nd6 {[%clk 0:02:05]} 19. Rf3 {[%clk 0:00:56]}  Rhf8 {[%clk 0:01:58]} 20. Rdf1 {[%clk 0:00:56]}  Rxf3 {[%clk 0:01:46]} 21. Rxf3 {[%clk 0:00:57]}  Kd7 {[%clk 0:01:38]} 22. b3 {[%clk 0:00:51]}  Ke6 {[%clk 0:01:36]} 23. Kc1 {[%clk 0:00:45]}  Rb8 {[%clk 0:01:36]} 24. a4 {[%clk 0:00:31]}  a6 {[%clk 0:01:32]} 25. Rf1 {[%clk 0:00:21]}  Bf8 {[%clk 0:01:21]} 26. Bxb6 {[%clk 0:00:19]}  Bh6+ {[%clk 0:01:20]} 27. Be3 {[%clk 0:00:13]}  Bxe3+ {[%clk 0:01:19]} 28. Kb2 {[%clk 0:00:14]}  Bd4 {[%clk 0:01:19]} 0-1


[Site "https://www.chess.com"]

[Event "Titled Tuesday Blitz February 15 Early 2022"]
[White "Valle Maytin, Luis Enrique"]
[Black "Avazkhonov, Alikhon"]
[WhiteFideId "3503666"]
[BlackFideId "14208504"]
[WhiteElo "2007"]
[BlackElo "1739"]
[Result "0-1"]
[Round "05"]
[TimeControl "180+1"]
[Date "2022.02.15"]
[WhiteClock "0:01:50"]
[BlackClock "0:02:09"]

1. e4 {[%clk 0:03:00]}  c5 {[%clk 0:02:46]} 2. Nf3 {[%clk 0:03:00]}  d6 {[%clk 0:02:46]} 3. d4 {[%clk 0:02:53]}  cxd4 {[%clk 0:02:45]} 4. Nxd4 {[%clk 0:02:54]}  Nf6 {[%clk 0:02:44]} 5. Nc3 {[%clk 0:02:53]}  a6 {[%clk 0:02:44]} 6. Bg5 {[%clk 0:02:34]}  e6 {[%clk 0:02:42]} 7. f4 {[%clk 0:02:34]}  h6 {[%clk 0:02:41]} 8. Bh4 {[%clk 0:02:28]}  Be7 {[%clk 0:02:40]} 9. Qf3 {[%clk 0:02:23]}  Nbd7 {[%clk 0:02:37]} 10. O-O-O {[%clk 0:02:22]}  Qc7 {[%clk 0:02:35]} 11. g4 {[%clk 0:02:07]}  g5 {[%clk 0:02:28]} 12. Bg3 {[%clk 0:02:03]}  gxf4 {[%clk 0:02:26]} 13. Bf2 {[%clk 0:02:00]}  Ne5 {[%clk 0:02:22]} 14. Qe2 {[%clk 0:01:54]}  Nfxg4 {[%clk 0:02:09]} 15. Qxg4 {[%clk 0:01:50]} 0-1


[Site "https://www.chess.com"]

[Event "Titled Tuesday Blitz February 15 Early 2022"]
[White "Van Foreest, Jorden"]
[Black "Gabrielian, Artur"]
[WhiteFideId "1039784"]
[BlackFideId "4131002"]
[WhiteElo "2609"]
[BlackElo "2440"]
[Result "1-0"]
[Round "05"]
[TimeControl "180+1"]
[Date "2022.02.15"]
[WhiteClock "0:00:35"]
[BlackClock "0:00:01"]

1. Nf3 {[%clk 0:01:54]}  Nf6 {[%clk 0:02:59]} 2. d4 {[%clk 0:01:53]}  g6 {[%clk 0:02:58]} 3. Bg5 {[%clk 0:01:54]}  Bg7 {[%clk 0:02:58]} 4. Nbd2 {[%clk 0:01:54]}  d5 {[%clk 0:02:56]} 5. e3 {[%clk 0:01:54]}  O-O {[%clk 0:02:54]} 6. c3 {[%clk 0:01:55]}  Nbd7 {[%clk 0:02:51]} 7. Be2 {[%clk 0:01:55]}  c5 {[%clk 0:02:39]} 8. O-O {[%clk 0:01:55]}  b6 {[%clk 0:02:39]} 9. a4 {[%clk 0:01:55]}  a6 {[%clk 0:02:29]} 10. b4 {[%clk 0:01:53]}  a5 {[%clk 0:01:42]} 11. bxc5 {[%clk 0:01:52]}  bxc5 {[%clk 0:01:42]} 12. Bb5 {[%clk 0:01:53]}  Bb7 {[%clk 0:01:36]} 13. Rb1 {[%clk 0:01:53]}  Ne4 {[%clk 0:01:30]} 14. Nxe4 {[%clk 0:01:52]}  dxe4 {[%clk 0:01:30]} 15. Nd2 {[%clk 0:01:53]}  cxd4 {[%clk 0:01:29]} 16. cxd4 {[%clk 0:01:53]}  Nf6 {[%clk 0:01:28]} 17. Nc4 {[%clk 0:01:52]}  Nd5 {[%clk 0:01:27]} 18. Qd2 {[%clk 0:01:49]}  h6 {[%clk 0:01:25]} 19. Bh4 {[%clk 0:01:48]}  g5 {[%clk 0:01:12]} 20. Bg3 {[%clk 0:01:46]}  f5 {[%clk 0:01:13]} 21. Be5 {[%clk 0:01:46]}  f4 {[%clk 0:01:12]} 22. Bxg7 {[%clk 0:01:44]}  Kxg7 {[%clk 0:01:12]} 23. Ne5 {[%clk 0:01:45]}  Nb4 {[%clk 0:01:03]} 24. Rfc1 {[%clk 0:01:44]}  Bd5 {[%clk 0:01:02]} 25. Rc5 {[%clk 0:01:44]}  Qd6 {[%clk 0:00:57]} 26. Rbc1 {[%clk 0:01:44]}  f3 {[%clk 0:00:46]} 27. g3 {[%clk 0:01:39]}  Ra7 {[%clk 0:00:43]} 28. Qd1 {[%clk 0:01:19]}  h5 {[%clk 0:00:42]} 29. h3 {[%clk 0:01:17]}  Rb8 {[%clk 0:00:09]} 30. Kh2 {[%clk 0:01:15]}  Rbb7 {[%clk 0:00:10]} 31. Rc8 {[%clk 0:01:15]}  Rc7 {[%clk 0:00:09]} 32. Rc5 {[%clk 0:01:12]}  Rxc5 {[%clk 0:00:08]} 33. Rxc5 {[%clk 0:01:11]}  Rc7 {[%clk 0:00:08]} 34. Qc1 {[%clk 0:00:58]}  Rxc5 {[%clk 0:00:08]} 35. Qxc5 {[%clk 0:00:59]}  Qxc5 {[%clk 0:00:09]} 36. dxc5 {[%clk 0:00:59]}  Kf6 {[%clk 0:00:09]} 37. Nd7+ {[%clk 0:00:53]}  Ke6 {[%clk 0:00:10]} 38. g4 {[%clk 0:00:50]}  h4 {[%clk 0:00:10]} 39. Nf8+ {[%clk 0:00:50]}  Kf6 {[%clk 0:00:09]} 40. Be8 {[%clk 0:00:48]}  Bc6 {[%clk 0:00:09]} 41. Nh7+ {[%clk 0:00:45]}  Ke5 {[%clk 0:00:06]} 42. Bxc6 {[%clk 0:00:42]}  Nxc6 {[%clk 0:00:06]} 43. Nxg5 {[%clk 0:00:43]}  Nb4 {[%clk 0:00:05]} 44. Nf7+ {[%clk 0:00:40]}  Kf6 {[%clk 0:00:05]} 45. Nd8 {[%clk 0:00:40]}  Nd5 {[%clk 0:00:01]} 46. c6 {[%clk 0:00:35]}  Nc7 {[%clk 0:00:01]} 47. Nb7 {[%clk 0:00:35]} 1-0


[Site "https://www.chess.com"]

[Event "Titled Tuesday Blitz February 15 Early 2022"]
[White "Vifleemskaia, Svetlana"]
[Black "Tanenbaum, Zachary"]
[WhiteFideId "4129490"]
[BlackFideId "2060850"]
[WhiteElo "1901"]
[BlackElo "2168"]
[Result "1/2-1/2"]
[Round "05"]
[TimeControl "180+1"]
[Date "2022.02.15"]
[WhiteClock "0:00:51"]
[BlackClock "0:00:35"]

1. d4 {[%clk 0:02:46]}  d5 {[%clk 0:02:59]} 2. c4 {[%clk 0:02:44]}  Bf5 {[%clk 0:03:00]} 3. cxd5 {[%clk 0:02:36]}  Bxb1 {[%clk 0:02:59]} 4. Qa4+ {[%clk 0:02:33]}  c6 {[%clk 0:03:00]} 5. Rxb1 {[%clk 0:02:32]}  Qxd5 {[%clk 0:03:00]} 6. Nf3 {[%clk 0:02:30]}  Nd7 {[%clk 0:03:00]} 7. e3 {[%clk 0:02:19]}  Ngf6 {[%clk 0:02:59]} 8. Bd3 {[%clk 0:02:18]}  Nc5 {[%clk 0:02:58]} 9. Qc4 {[%clk 0:02:06]}  Nxd3+ {[%clk 0:02:58]} 10. Qxd3 {[%clk 0:02:07]}  Qxa2 {[%clk 0:02:59]} 11. O-O {[%clk 0:02:07]}  e6 {[%clk 0:02:56]} 12. e4 {[%clk 0:02:07]}  Qa5 {[%clk 0:02:44]} 13. b4 {[%clk 0:02:05]}  Qd8 {[%clk 0:02:34]} 14. b5 {[%clk 0:01:48]}  c5 {[%clk 0:02:31]} 15. d5 {[%clk 0:01:28]}  Bd6 {[%clk 0:02:08]} 16. e5 {[%clk 0:01:24]}  Bxe5 {[%clk 0:01:44]} 17. Nxe5 {[%clk 0:01:23]}  Nxd5 {[%clk 0:01:41]} 18. Qg3 {[%clk 0:01:15]}  O-O {[%clk 0:01:40]} 19. Bh6 {[%clk 0:01:06]}  Qf6 {[%clk 0:01:39]} 20. Bg5 {[%clk 0:01:05]}  Qf5 {[%clk 0:01:39]} 21. Bh6 {[%clk 0:00:56]}  Qf6 {[%clk 0:01:20]} 22. Bg5 {[%clk 0:00:52]}  Qf5 {[%clk 0:01:06]} 23. Bh6 {[%clk 0:00:51]}  Qf6 {[%clk 0:00:35]} 1/2-1/2


[Site "https://www.chess.com"]

[Event "Titled Tuesday Blitz February 15 Early 2022"]
[White "Vitiugov, Nikita"]
[Black "Kretov, Evgenij"]
[WhiteFideId "4152956"]
[BlackFideId "4167821"]
[WhiteElo "2673"]
[BlackElo "2303"]
[Result "1-0"]
[Round "05"]
[TimeControl "180+1"]
[Date "2022.02.15"]
[WhiteClock "0:01:58"]
[BlackClock "0:00:17"]

1. c4 {[%clk 0:03:00]}  Nf6 {[%clk 0:02:59]} 2. Nc3 {[%clk 0:03:00]}  c5 {[%clk 0:02:59]} 3. g3 {[%clk 0:03:00]}  e6 {[%clk 0:02:59]} 4. Nf3 {[%clk 0:02:57]}  b6 {[%clk 0:03:00]} 5. e4 {[%clk 0:02:56]}  d6 {[%clk 0:02:59]} 6. d4 {[%clk 0:02:54]}  cxd4 {[%clk 0:02:59]} 7. Nxd4 {[%clk 0:02:54]}  a6 {[%clk 0:02:59]} 8. Bg2 {[%clk 0:02:54]}  Bb7 {[%clk 0:02:59]} 9. O-O {[%clk 0:02:54]}  Qc7 {[%clk 0:02:57]} 10. Qe2 {[%clk 0:02:53]}  Nbd7 {[%clk 0:02:57]} 11. f4 {[%clk 0:02:45]}  Be7 {[%clk 0:02:42]} 12. g4 {[%clk 0:02:42]}  O-O {[%clk 0:01:59]} 13. g5 {[%clk 0:02:42]}  Ne8 {[%clk 0:01:54]} 14. f5 {[%clk 0:02:37]}  Nc5 {[%clk 0:01:34]} 15. Be3 {[%clk 0:02:26]}  Qd8 {[%clk 0:01:15]} 16. Qg4 {[%clk 0:02:19]}  e5 {[%clk 0:01:06]} 17. Nc2 {[%clk 0:02:15]}  Kh8 {[%clk 0:01:05]} 18. Nb4 {[%clk 0:02:14]}  b5 {[%clk 0:01:02]} 19. cxb5 {[%clk 0:02:09]}  axb5 {[%clk 0:01:02]} 20. Rf3 {[%clk 0:02:06]}  h6 {[%clk 0:00:53]} 21. Rh3 {[%clk 0:02:04]}  Qa5 {[%clk 0:00:40]} 22. Nbd5 {[%clk 0:02:02]}  Qd8 {[%clk 0:00:34]} 23. f6 {[%clk 0:02:00]}  Nxf6 {[%clk 0:00:16]} 24. gxf6 {[%clk 0:01:58]}  Bxf6 {[%clk 0:00:17]} 25. Bxh6 {[%clk 0:01:58]} 1-0


[Site "https://www.chess.com"]

[Event "Titled Tuesday Blitz February 15 Early 2022"]
[White "Wartiovaara, Oliver"]
[Black "Rychagov, Andrey"]
[WhiteFideId "513024"]
[BlackFideId "4119932"]
[WhiteElo "1971"]
[BlackElo "2500"]
[Result "0-1"]
[Round "05"]
[TimeControl "180+1"]
[Date "2022.02.15"]
[WhiteClock "0:00:12"]
[BlackClock "0:00:34"]

1. e4 {[%clk 0:03:00]}  c5 {[%clk 0:02:59]} 2. Nf3 {[%clk 0:03:00]}  e6 {[%clk 0:02:59]} 3. g3 {[%clk 0:02:59]}  a6 {[%clk 0:02:58]} 4. Bg2 {[%clk 0:02:58]}  b5 {[%clk 0:02:58]} 5. d4 {[%clk 0:02:48]}  cxd4 {[%clk 0:02:58]} 6. Nxd4 {[%clk 0:02:49]}  Bb7 {[%clk 0:02:58]} 7. O-O {[%clk 0:02:49]}  Nf6 {[%clk 0:02:53]} 8. Re1 {[%clk 0:02:48]}  d6 {[%clk 0:02:49]} 9. Nc3 {[%clk 0:02:47]}  Qc7 {[%clk 0:02:44]} 10. Bg5 {[%clk 0:02:28]}  Be7 {[%clk 0:02:42]} 11. Qd2 {[%clk 0:02:21]}  O-O {[%clk 0:02:40]} 12. a4 {[%clk 0:02:20]}  b4 {[%clk 0:02:39]} 13. Na2 {[%clk 0:02:20]}  h6 {[%clk 0:02:08]} 14. Bxf6 {[%clk 0:02:14]}  Bxf6 {[%clk 0:02:09]} 15. Nxb4 {[%clk 0:01:51]}  Nd7 {[%clk 0:02:07]} 16. Na2 {[%clk 0:01:18]}  Rfc8 {[%clk 0:01:56]} 17. Nc3 {[%clk 0:01:17]}  Ne5 {[%clk 0:01:55]} 18. Rab1 {[%clk 0:01:14]}  Nc4 {[%clk 0:01:41]} 19. Qd3 {[%clk 0:01:12]}  Nxb2 {[%clk 0:01:41]} 20. Rxb2 {[%clk 0:01:11]}  Qxc3 {[%clk 0:01:41]} 21. Qxc3 {[%clk 0:00:52]}  Rxc3 {[%clk 0:01:41]} 22. Rxb7 {[%clk 0:00:35]}  Bxd4 {[%clk 0:01:40]} 23. Re2 {[%clk 0:00:29]}  Rac8 {[%clk 0:01:36]} 24. Rd7 {[%clk 0:00:26]}  Rxc2 {[%clk 0:01:29]} 25. Bf3 {[%clk 0:00:25]}  Be5 {[%clk 0:01:23]} 26. Rxc2 {[%clk 0:00:25]}  Rxc2 {[%clk 0:01:22]} 27. Bh5 {[%clk 0:00:24]}  g6 {[%clk 0:01:22]} 28. Bf3 {[%clk 0:00:22]}  a5 {[%clk 0:01:14]} 29. Ra7 {[%clk 0:00:21]}  Bd4 {[%clk 0:01:15]} 30. Ra8+ {[%clk 0:00:21]}  Kg7 {[%clk 0:01:14]} 31. Rd8 {[%clk 0:00:21]}  Bxf2+ {[%clk 0:01:09]} 32. Kh1 {[%clk 0:00:20]}  Bc5 {[%clk 0:01:09]} 33. Rc8 {[%clk 0:00:19]}  h5 {[%clk 0:01:05]} 34. e5 {[%clk 0:00:16]}  dxe5 {[%clk 0:01:01]} 35. Rc7 {[%clk 0:00:15]}  Kf6 {[%clk 0:00:49]} 36. Be4 {[%clk 0:00:14]}  Rc4 {[%clk 0:00:48]} 37. Bd3 {[%clk 0:00:13]}  Rc3 {[%clk 0:00:48]} 38. Bb5 {[%clk 0:00:13]}  Bd4 {[%clk 0:00:35]} 39. Be8 {[%clk 0:00:12]}  Rxc7 {[%clk 0:00:34]} 0-1


[Site "https://www.chess.com"]

[Event "Titled Tuesday Blitz February 15 Early 2022"]
[White "Willow, Jonah B"]
[Black "Csonka, Balazs"]
[WhiteFideId "438804"]
[BlackFideId "742910"]
[WhiteElo "2261"]
[BlackElo "2404"]
[Result "1/2-1/2"]
[Round "05"]
[TimeControl "180+1"]
[Date "2022.02.15"]
[WhiteClock "0:00:14"]
[BlackClock "0:00:03"]

1. e4 {[%clk 0:03:00]}  c6 {[%clk 0:02:58]} 2. d4 {[%clk 0:02:59]}  d5 {[%clk 0:02:57]} 3. Nc3 {[%clk 0:03:00]}  dxe4 {[%clk 0:02:57]} 4. Nxe4 {[%clk 0:03:01]}  Nf6 {[%clk 0:02:56]} 5. Nxf6+ {[%clk 0:03:02]}  exf6 {[%clk 0:02:57]} 6. c3 {[%clk 0:03:03]}  Bd6 {[%clk 0:02:57]} 7. Bd3 {[%clk 0:03:03]}  O-O {[%clk 0:02:57]} 8. Ne2 {[%clk 0:03:04]}  Re8 {[%clk 0:02:57]} 9. O-O {[%clk 0:03:03]}  Nd7 {[%clk 0:02:55]} 10. Ng3 {[%clk 0:03:03]}  g6 {[%clk 0:02:42]} 11. Bh6 {[%clk 0:02:50]}  f5 {[%clk 0:01:54]} 12. Qd2 {[%clk 0:02:47]}  Bf8 {[%clk 0:01:37]} 13. Rfe1 {[%clk 0:02:44]}  Bxh6 {[%clk 0:00:45]} 14. Qxh6 {[%clk 0:02:43]}  Nf8 {[%clk 0:00:43]} 15. Rad1 {[%clk 0:02:10]}  Be6 {[%clk 0:00:37]} 16. b3 {[%clk 0:02:10]}  Qf6 {[%clk 0:00:24]} 17. Nh5 {[%clk 0:02:07]}  Qh8 {[%clk 0:00:24]} 18. Nf4 {[%clk 0:02:07]}  Bd7 {[%clk 0:00:19]} 19. Bc4 {[%clk 0:02:05]}  Qg7 {[%clk 0:00:14]} 20. Qh3 {[%clk 0:02:05]}  Qf6 {[%clk 0:00:09]} 21. d5 {[%clk 0:02:03]}  Rxe1+ {[%clk 0:00:07]} 22. Rxe1 {[%clk 0:02:03]}  Re8 {[%clk 0:00:08]} 23. Rd1 {[%clk 0:02:04]}  Qd6 {[%clk 0:00:05]} 24. Qf3 {[%clk 0:01:57]}  c5 {[%clk 0:00:05]} 25. h4 {[%clk 0:01:56]}  h6 {[%clk 0:00:03]} 26. a4 {[%clk 0:01:52]}  Nh7 {[%clk 0:00:03]} 27. Bb5 {[%clk 0:01:27]}  Nf6 {[%clk 0:00:03]} 28. Bxd7 {[%clk 0:01:27]}  Nxd7 {[%clk 0:00:04]} 29. Nd3 {[%clk 0:01:21]}  Ne5 {[%clk 0:00:03]} 30. Nxe5 {[%clk 0:01:22]}  Rxe5 {[%clk 0:00:03]} 31. c4 {[%clk 0:01:20]}  b6 {[%clk 0:00:03]} 32. g3 {[%clk 0:01:19]}  Kg7 {[%clk 0:00:04]} 33. Qf4 {[%clk 0:01:19]}  Qe7 {[%clk 0:00:02]} 34. d6 {[%clk 0:01:17]}  Re1+ {[%clk 0:00:03]} 35. Kg2 {[%clk 0:01:01]}  Qb7+ {[%clk 0:00:03]} 36. Rd5 {[%clk 0:00:57]}  Re4 {[%clk 0:00:02]} 37. Qd2 {[%clk 0:00:54]}  Qd7 {[%clk 0:00:02]} 38. Qc3+ {[%clk 0:00:54]}  Kh7 {[%clk 0:00:02]} 39. Qf6 {[%clk 0:00:54]}  Re6 {[%clk 0:00:02]} 40. Qc3 {[%clk 0:00:53]}  Rxd6 {[%clk 0:00:02]} 41. Re5 {[%clk 0:00:46]}  Re6 {[%clk 0:00:03]} 42. Rd5 {[%clk 0:00:46]}  Rd6 {[%clk 0:00:03]} 43. Qd3 {[%clk 0:00:44]}  Rxd5 {[%clk 0:00:03]} 44. cxd5 {[%clk 0:00:45]}  Qd6 {[%clk 0:00:04]} 45. Qc4 {[%clk 0:00:43]}  Kg7 {[%clk 0:00:04]} 46. Qc3+ {[%clk 0:00:43]}  Qf6 {[%clk 0:00:03]} 47. Qd2 {[%clk 0:00:42]}  Qd6 {[%clk 0:00:02]} 48. f4 {[%clk 0:00:42]}  Kf6 {[%clk 0:00:02]} 49. Kf3 {[%clk 0:00:42]}  Ke7 {[%clk 0:00:02]} 50. Qe3+ {[%clk 0:00:43]}  Kd7 {[%clk 0:00:02]} 51. Qd3 {[%clk 0:00:44]}  h5 {[%clk 0:00:01]} 52. Qb5+ {[%clk 0:00:44]}  Ke7 {[%clk 0:00:02]} 53. Qc4 {[%clk 0:00:43]}  Kd7 {[%clk 0:00:02]} 54. Ke2 {[%clk 0:00:42]}  Kc7 {[%clk 0:00:02]} 55. Qd3 {[%clk 0:00:41]}  Kb7 {[%clk 0:00:02]} 56. Kd1 {[%clk 0:00:39]}  Qd7 {[%clk 0:00:03]} 57. Kc2 {[%clk 0:00:38]}  a6 {[%clk 0:00:03]} 58. Qc4 {[%clk 0:00:36]}  Qe7 {[%clk 0:00:02]} 59. d6 {[%clk 0:00:31]}  Qxd6 {[%clk 0:00:02]} 60. Qxf7+ {[%clk 0:00:31]}  Kc6 {[%clk 0:00:02]} 61. Qe8+ {[%clk 0:00:31]}  Kc7 {[%clk 0:00:02]} 62. Qf7+ {[%clk 0:00:28]}  Kc6 {[%clk 0:00:03]} 63. Qe8+ {[%clk 0:00:25]}  Kc7 {[%clk 0:00:03]} 64. Qa8 {[%clk 0:00:21]}  Qc6 {[%clk 0:00:02]} 65. Qf8 {[%clk 0:00:14]}  Qg2+ {[%clk 0:00:02]} 66. Kc1 {[%clk 0:00:13]}  Qg1+ {[%clk 0:00:02]} 67. Kc2 {[%clk 0:00:13]}  Qf2+ {[%clk 0:00:02]} 68. Kb1 {[%clk 0:00:13]}  Qe1+ {[%clk 0:00:02]} 69. Ka2 {[%clk 0:00:12]}  Qd2+ {[%clk 0:00:02]} 70. Kb1 {[%clk 0:00:13]}  Qd1+ {[%clk 0:00:02]} 71. Kb2 {[%clk 0:00:13]}  Qd2+ {[%clk 0:00:03]} 72. Kb1 {[%clk 0:00:13]}  Qd1+ {[%clk 0:00:03]} 73. Kb2 {[%clk 0:00:14]}  Qd2+ {[%clk 0:00:03]} 74. Kb1 {[%clk 0:00:14]} 1/2-1/2


[Site "https://www.chess.com"]

[Event "Titled Tuesday Blitz February 15 Early 2022"]
[White "Zaichenko, Daria"]
[Black "Bashirli, Saadat"]
[WhiteFideId "4197453"]
[BlackFideId "13429990"]
[WhiteElo "2039"]
[BlackElo "1173"]
[Result "0-1"]
[Round "05"]
[TimeControl "180+1"]
[Date "2022.02.15"]
[WhiteClock "0:00:29"]
[BlackClock "0:00:54"]

1. e4 {[%clk 0:02:55]}  c5 {[%clk 0:02:59]} 2. Nf3 {[%clk 0:02:55]}  g6 {[%clk 0:02:59]} 3. d4 {[%clk 0:02:55]}  cxd4 {[%clk 0:03:00]} 4. Nxd4 {[%clk 0:02:55]}  Nc6 {[%clk 0:03:00]} 5. Nc3 {[%clk 0:02:55]}  Bg7 {[%clk 0:02:57]} 6. Nb3 {[%clk 0:02:47]}  Nf6 {[%clk 0:02:55]} 7. Be3 {[%clk 0:02:35]}  d6 {[%clk 0:02:52]} 8. Be2 {[%clk 0:02:36]}  O-O {[%clk 0:02:51]} 9. O-O {[%clk 0:02:35]}  Bd7 {[%clk 0:02:48]} 10. f4 {[%clk 0:02:34]}  a5 {[%clk 0:02:48]} 11. a4 {[%clk 0:02:32]}  Nb4 {[%clk 0:02:42]} 12. Bf3 {[%clk 0:02:27]}  Bc6 {[%clk 0:02:40]} 13. Qe2 {[%clk 0:02:24]}  d5 {[%clk 0:02:36]} 14. Rad1 {[%clk 0:02:20]}  e6 {[%clk 0:02:31]} 15. e5 {[%clk 0:02:08]}  Nd7 {[%clk 0:02:28]} 16. Nc5 {[%clk 0:02:08]}  Re8 {[%clk 0:02:23]} 17. Nxd7 {[%clk 0:02:07]}  Qxd7 {[%clk 0:02:24]} 18. b3 {[%clk 0:02:01]}  Rac8 {[%clk 0:02:19]} 19. Ne4 {[%clk 0:01:56]}  Rb8 {[%clk 0:02:07]} 20. Nd6 {[%clk 0:01:54]}  Rf8 {[%clk 0:02:03]} 21. c4 {[%clk 0:01:41]}  f6 {[%clk 0:01:55]} 22. Bc5 {[%clk 0:01:36]}  Rfd8 {[%clk 0:01:50]} 23. Bxb4 {[%clk 0:01:29]}  axb4 {[%clk 0:01:44]} 24. cxd5 {[%clk 0:01:27]}  exd5 {[%clk 0:01:45]} 25. Bxd5+ {[%clk 0:01:25]}  Bxd5 {[%clk 0:01:44]} 26. Rxd5 {[%clk 0:01:24]}  fxe5 {[%clk 0:01:44]} 27. fxe5 {[%clk 0:01:24]}  Qe6 {[%clk 0:01:42]} 28. Qe4 {[%clk 0:01:10]}  Rd7 {[%clk 0:01:29]} 29. Rfd1 {[%clk 0:01:03]}  Rbd8 {[%clk 0:01:20]} 30. Qxb4 {[%clk 0:00:52]}  Bxe5 {[%clk 0:01:16]} 31. Rxe5 {[%clk 0:00:43]}  Qxe5 {[%clk 0:01:13]} 32. Qc4+ {[%clk 0:00:41]}  Kg7 {[%clk 0:01:11]} 33. Rf1 {[%clk 0:00:39]}  Qxd6 {[%clk 0:01:05]} 34. Kh1 {[%clk 0:00:38]}  Qd4 {[%clk 0:01:02]} 35. Qb5 {[%clk 0:00:34]}  Rf7 {[%clk 0:00:57]} 36. Rxf7+ {[%clk 0:00:31]}  Kxf7 {[%clk 0:00:54]} 37. Qxb7+ {[%clk 0:00:30]}  Rd7 {[%clk 0:00:54]} 38. Qf3+ {[%clk 0:00:29]}  Kg7 {[%clk 0:00:53]} 39. h3 {[%clk 0:00:28]}  Qd1+ {[%clk 0:00:53]} 40. Qxd1 {[%clk 0:00:28]}  Rxd1+ {[%clk 0:00:53]} 41. Kh2 {[%clk 0:00:29]}  Rb1 {[%clk 0:00:54]} 42. a5 {[%clk 0:00:28]}  Rxb3 {[%clk 0:00:51]} 43. a6 {[%clk 0:00:28]}  Ra3 {[%clk 0:00:52]} 44. a7 {[%clk 0:00:29]}  Rxa7 {[%clk 0:00:53]} 45. Kg3 {[%clk 0:00:29]}  Ra4 {[%clk 0:00:52]} 46. h4 {[%clk 0:00:28]}  Kf6 {[%clk 0:00:53]} 47. Kh3 {[%clk 0:00:29]}  h5 {[%clk 0:00:54]} 48. g3 {[%clk 0:00:29]}  Rg4 {[%clk 0:00:54]} 0-1


[Site "https://www.chess.com"]

[Event "Titled Tuesday Blitz February 15 Early 2022"]
[White "Zheenbekov, Nurgazy"]
[Black "Budrewicz, Krzysztof"]
[WhiteFideId "13800485"]
[BlackFideId "1127950"]
[WhiteElo "1959"]
[BlackElo "2248"]
[Result "0-1"]
[Round "05"]
[TimeControl "180+1"]
[Date "2022.02.15"]
[WhiteClock "0:00:02"]
[BlackClock "0:00:19"]

1. e4 {[%clk 0:02:59]}  g6 {[%clk 0:02:59]} 2. d4 {[%clk 0:02:58]}  Bg7 {[%clk 0:02:59]} 3. Nc3 {[%clk 0:02:59]}  d6 {[%clk 0:02:59]} 4. Bc4 {[%clk 0:02:57]}  c6 {[%clk 0:02:58]} 5. a4 {[%clk 0:02:56]}  Nf6 {[%clk 0:02:56]} 6. Bb3 {[%clk 0:02:52]}  O-O {[%clk 0:02:56]} 7. Nf3 {[%clk 0:02:52]}  Bg4 {[%clk 0:02:56]} 8. h3 {[%clk 0:02:52]}  Bxf3 {[%clk 0:02:56]} 9. Qxf3 {[%clk 0:02:51]}  Nbd7 {[%clk 0:02:56]} 10. O-O {[%clk 0:02:45]}  e5 {[%clk 0:02:56]} 11. dxe5 {[%clk 0:02:45]}  dxe5 {[%clk 0:02:54]} 12. Be3 {[%clk 0:02:40]}  Qe7 {[%clk 0:02:54]} 13. g4 {[%clk 0:02:25]}  Nc5 {[%clk 0:02:50]} 14. Bc4 {[%clk 0:02:24]}  Ne6 {[%clk 0:02:49]} 15. Rfd1 {[%clk 0:02:22]}  Nd7 {[%clk 0:02:44]} 16. Ne2 {[%clk 0:02:20]}  Nb6 {[%clk 0:02:34]} 17. Bb3 {[%clk 0:02:15]}  Nc5 {[%clk 0:02:33]} 18. Bxc5 {[%clk 0:02:09]}  Qxc5 {[%clk 0:02:33]} 19. a5 {[%clk 0:02:10]}  Nc8 {[%clk 0:02:11]} 20. Rd7 {[%clk 0:02:09]}  Ne7 {[%clk 0:01:48]} 21. Rad1 {[%clk 0:02:08]}  b5 {[%clk 0:01:43]} 22. Rc7 {[%clk 0:01:58]}  Rac8 {[%clk 0:01:41]} 23. Rxc8 {[%clk 0:01:52]}  Nxc8 {[%clk 0:01:41]} 24. Rd7 {[%clk 0:01:53]}  Nd6 {[%clk 0:01:34]} 25. Qd3 {[%clk 0:01:18]}  Nc4 {[%clk 0:01:29]} 26. Bxc4 {[%clk 0:01:10]}  bxc4 {[%clk 0:01:29]} 27. Qc3 {[%clk 0:01:10]}  Rb8 {[%clk 0:01:21]} 28. b3 {[%clk 0:01:10]}  Bf8 {[%clk 0:01:15]} 29. Qf3 {[%clk 0:00:56]}  Be7 {[%clk 0:01:11]} 30. bxc4 {[%clk 0:00:54]}  Rd8 {[%clk 0:00:57]} 31. Rb7 {[%clk 0:00:50]}  Kf8 {[%clk 0:00:56]} 32. Kg2 {[%clk 0:00:50]}  a6 {[%clk 0:00:54]} 33. Nc1 {[%clk 0:00:45]}  Qxa5 {[%clk 0:00:49]} 34. Nd3 {[%clk 0:00:42]}  Qc3 {[%clk 0:00:49]} 35. Qe3 {[%clk 0:00:31]}  Qd4 {[%clk 0:00:47]} 36. Qh6+ {[%clk 0:00:30]}  Ke8 {[%clk 0:00:45]} 37. Qg7 {[%clk 0:00:28]}  Qxc4 {[%clk 0:00:20]} 38. Qh8+ {[%clk 0:00:13]}  Bf8 {[%clk 0:00:20]} 39. Qxe5+ {[%clk 0:00:13]}  Qe6 {[%clk 0:00:20]} 40. Qxe6+ {[%clk 0:00:07]}  fxe6 {[%clk 0:00:20]} 41. Ne5 {[%clk 0:00:07]}  Ra8 {[%clk 0:00:19]} 42. Nxc6 {[%clk 0:00:07]}  a5 {[%clk 0:00:20]} 43. Rb2 {[%clk 0:00:04]}  a4 {[%clk 0:00:20]} 44. Ra2 {[%clk 0:00:05]}  a3 {[%clk 0:00:20]} 45. c4 {[%clk 0:00:05]}  Ra4 {[%clk 0:00:20]} 46. Nd4 {[%clk 0:00:03]}  Rxc4 {[%clk 0:00:19]} 47. Nxe6 {[%clk 0:00:03]}  Be7 {[%clk 0:00:19]} 48. f4 {[%clk 0:00:02]}  Rxe4 {[%clk 0:00:18]} 49. f5 {[%clk 0:00:03]}  gxf5 {[%clk 0:00:18]} 50. gxf5 {[%clk 0:00:02]}  Re5 {[%clk 0:00:18]} 51. Nd4 {[%clk 0:00:02]}  Rd5 {[%clk 0:00:18]} 52. Nc6 {[%clk 0:00:02]}  Bc5 {[%clk 0:00:17]} 53. Kf3 {[%clk 0:00:02]}  Rxf5+ {[%clk 0:00:18]} 54. Ke4 {[%clk 0:00:01]}  Rh5 {[%clk 0:00:18]} 55. Nd4 {[%clk 0:00:01]}  Rh4+ {[%clk 0:00:18]} 56. Kd5 {[%clk 0:00:01]}  Bxd4 {[%clk 0:00:18]} 57. Rxa3 {[%clk 0:00:02]}  Bf6 {[%clk 0:00:18]} 58. Ra8+ {[%clk 0:00:01]}  Kf7 {[%clk 0:00:18]} 59. Ra7+ {[%clk 0:00:02]}  Kg6 {[%clk 0:00:19]} 0-1


[Site "https://www.chess.com"]